bitfinex/quotes_BTCUSD_20250131
["timestamp","ask_amount","ask_price","bid_price","bid_amount"]
[1738352898228,0.00047771,102230.0,102220.0,0.44980981]
[1738352898461,0.14668,102270.0,102260.0,0.13006781]
[1738352898911,0.14668,102270.0,102260.0,0.13021172]
[1738352899141,0.39392316,102270.0,102260.0,0.12844391]
[1738352899355,0.39392316,102270.0,102260.0,0.08054391]
[1738352899559,0.24392316,102270.0,102260.0,0.08054391]
[1738352900052,0.39592316,102270.0,102260.0,0.08054391]
[1738352900259,0.30584,102270.0,102260.0,0.08054391]
[1738352900882,0.40308316,102270.0,102260.0,0.08054391]
[1738352901179,0.39592316,102270.0,102260.0,0.08054391]
[1738352901439,0.39592316,102270.0,102260.0,0.00014391]
[1738352901440,0.52372585,102270.0,102260.0,0.00014391]
[1738352901864,0.50043992,102270.0,102260.0,0.00014391]
[1738352902220,0.49843992,102270.0,102260.0,0.00014391]
[1738352902424,0.50839789,102270.0,102260.0,0.00014391]
[1738352903048,0.41104113,102270.0,102260.0,0.00014391]
[1738352903470,0.41104113,102270.0,102260.0,0.00114391]
[1738352903673,0.42004113,102270.0,102260.0,0.00214391]
[1738352903887,0.42004113,102270.0,102260.0,0.08114391]
[1738352903888,0.27004113,102270.0,102260.0,0.08114391]
[1738352904099,0.17279797,102270.0,102260.0,0.08114391]
[1738352904249,0.17279797,102270.0,102260.0,0.08014391]
[1738352904250,0.16379797,102270.0,102260.0,0.08014391]
[1738352904674,0.31379797,102270.0,102260.0,0.08091172]
[1738352904889,0.16379797,102270.0,102260.0,0.08091172]
[1738352905445,0.16879797,102270.0,102260.0,0.08191172]
[1738352905885,0.31879797,102270.0,102260.0,0.08191172]
[1738352906478,0.31379797,102270.0,102260.0,0.08091172]
[1738352906692,0.32279797,102270.0,102260.0,0.08191172]
[1738352907788,0.51715425,102270.0,102260.0,0.08014391]
[1738352907992,0.51715425,102270.0,102260.0,0.00014391]
[1738352907993,0.51215425,102270.0,102260.0,0.00014391]
[1738352908145,0.53115425,102270.0,102260.0,0.00114391]
[1738352908345,0.33679797,102270.0,102260.0,0.00114391]
[1738352908545,0.33279797,102270.0,102260.0,0.00014391]
[1738352908972,0.43504113,102270.0,102260.0,0.00014391]
[1738352909506,0.43929733,102270.0,102260.0,0.00114391]
[1738352909816,0.43429733,102270.0,102260.0,0.00014391]
[1738352910055,0.54065409,102270.0,102260.0,0.00114391]
[1738352910843,0.541188,102260.0,102220.0,0.04966781]
[1738352910994,0.146727,102230.0,102220.0,0.12696781]
[1738352911212,1.26120878,102230.0,102220.0,0.1252]
[1738352911428,1.26120878,102230.0,102220.0,0.12696781]
[1738352912234,1.26130217,102230.0,102220.0,0.12696781]
[1738352912635,1.26830217,102230.0,102220.0,0.12796781]
[1738352912854,1.26830217,102230.0,102220.0,0.12696781]
[1738352913063,1.26130217,102230.0,102220.0,0.12696781]
[1738352913519,1.27530217,102230.0,102220.0,0.12796781]
[1738352914147,1.12530217,102230.0,102220.0,0.12796781]
[1738352914325,1.13246217,102230.0,102220.0,0.12796781]
[1738352915037,1.16246217,102230.0,102220.0,0.12796781]
[1738352915288,1.15530217,102230.0,102220.0,0.22521097]
[1738352915506,1.16246217,102230.0,102220.0,0.22521097]
[1738352915682,1.13246217,102230.0,102220.0,0.22521097]
[1738352915884,1.14246217,102230.0,102220.0,0.22521097]
[1738352916266,1.13530217,102230.0,102220.0,0.22521097]
[1738352916761,0.02409339,102230.0,102220.0,0.39495297]
[1738352916983,0.1669262,102270.0,102260.0,0.13276781]
[1738352917185,0.16702026,102270.0,102260.0,0.13374556]
[1738352917665,0.16702026,102270.0,102260.0,0.23098872]
[1738352917878,0.16702026,102270.0,102260.0,0.13276781]
[1738352917879,1.13150204,102270.0,102260.0,0.13276781]
[1738352918094,1.13150204,102270.0,102260.0,0.08486781]
[1738352918302,1.28550204,102270.0,102260.0,0.0831]
[1738352918491,1.28550204,102270.0,102260.0,0.08486781]
[1738352918703,1.28650204,102270.0,102260.0,0.09086781]
[1738352918955,1.28150204,102270.0,102260.0,0.08486781]
[1738352919389,1.29766204,102270.0,102260.0,0.08586781]
[1738352919605,1.30766204,102270.0,102260.0,0.08586781]
[1738352919993,0.03935026,102270.0,102260.0,0.18311097]
[1738352920150,0.03935026,102270.0,102260.0,0.37809497]
[1738352920356,0.03935026,102270.0,102260.0,0.23141097]
[1738352920697,0.03935026,102270.0,102260.0,0.25441097]
[1738352921073,0.03035026,102270.0,102260.0,0.25341097]
[1738352921295,0.17702026,102270.0,102260.0,0.26241097]
[1738352921508,0.17802026,102270.0,102260.0,0.26241097]
[1738352921721,0.03135026,102270.0,102260.0,0.26241097]
[1738352921929,0.17802026,102270.0,102260.0,0.26241097]
[1738352922661,0.17802026,102270.0,102260.0,0.23941097]
[1738352922934,0.17802026,102270.0,102260.0,0.14216781]
[1738352923451,0.17902026,102270.0,102260.0,0.24541097]
[1738352923658,0.18902026,102270.0,102260.0,0.24541097]
[1738352924069,0.18902026,102270.0,102260.0,0.14816781]
[1738352924687,0.18902026,102270.0,102260.0,0.24541097]
[1738352924830,0.04235026,102270.0,102260.0,0.26841097]
[1738352925034,0.04235026,102270.0,102260.0,0.41509497]
[1738352925257,0.04235026,102270.0,102260.0,0.55383364]
[1738352925464,0.04235026,102270.0,102260.0,0.70383364]
[1738352925657,0.04235026,102270.0,102260.0,0.26841097]
[1738352925861,0.04235026,102270.0,102260.0,0.24364316]
[1738352926070,0.18802026,102270.0,102260.0,0.23764316]
[1738352926275,0.04135026,102270.0,102260.0,0.23941097]
[1738352926519,0.18902026,102270.0,102260.0,0.24741097]
[1738352926711,0.04235026,102270.0,102260.0,0.27041097]
[1738352926933,0.18802026,102270.0,102260.0,0.23941097]
[1738352927138,0.18802026,102270.0,102260.0,0.23764316]
[1738352927311,0.18802026,102270.0,102260.0,0.23741097]
[1738352927533,0.18802026,102270.0,102260.0,0.1474]
[1738352927877,0.18802026,102270.0,102260.0,0.23564316]
[1738352927990,0.18802026,102270.0,102260.0,0.23741097]
[1738352928194,0.19802026,102270.0,102260.0,0.24541097]
[1738352928643,0.19702026,102270.0,102260.0,0.23841097]
[1738352928963,0.05035026,102270.0,102260.0,0.26541097]
[1738352929166,0.19702026,102270.0,102260.0,0.26541097]
[1738352930499,0.05035026,102270.0,102260.0,0.26541097]
[1738352930676,0.19702026,102270.0,102260.0,0.26541097]
[1738352930880,0.05035026,102270.0,102260.0,0.54414964]
[1738352931082,0.05035026,102270.0,102260.0,0.72083364]
[1738352931853,0.05035026,102270.0,102260.0,0.71283364]
[1738352932059,0.05035026,102270.0,102260.0,0.58409497]
[1738352932431,0.05035026,102270.0,102260.0,0.57309497]
[1738352932590,0.05035026,102270.0,102260.0,0.70183364]
[1738352932998,0.05035026,102270.0,102260.0,0.57132716]
[1738352933196,0.05035026,102270.0,102260.0,0.57309497]
[1738352933400,0.03035026,102270.0,102260.0,0.58298105]
[1738352933802,0.03035026,102270.0,102260.0,0.43452924]
[1738352934057,0.03035026,102270.0,102260.0,0.14216781]
[1738352934058,1.14150204,102270.0,102260.0,0.14216781]
[1738352934215,1.14150204,102270.0,102260.0,0.009]
[1738352934376,1.29150204,102270.0,102260.0,0.014]
[1738352934575,1.29150204,102270.0,102260.0,0.01576781]
[1738352935028,1.29175824,102270.0,102260.0,0.01076781]
[1738352935197,1.29175824,102270.0,102260.0,0.01576781]
[1738352935401,1.29175824,102270.0,102260.0,0.014]
[1738352935806,1.29175824,102270.0,102260.0,0.009]
[1738352936229,1.3890014,102270.0,102260.0,0.009]
[1738352936570,1.39898751,102270.0,102260.0,0.009]
[1738352936770,0.15,102260.0,102250.0,0.00176781]
[1738352936988,0.49943,102260.0,102250.0,0.00176781]
[1738352938034,0.296713,102240.0,102230.0,0.000122]
[1738352938374,1.26119478,102240.0,102230.0,0.00188981]
[1738352938729,1.11119478,102240.0,102230.0,0.00188981]
[1738352938930,1.11119478,102240.0,102230.0,0.00286789]
[1738352939131,1.11119478,102240.0,102230.0,0.00688981]
[1738352939338,1.11119478,102240.0,102230.0,0.00786788]
[1738352939533,1.11119478,102240.0,102230.0,0.10511104]
[1738352939741,1.11835478,102240.0,102230.0,0.10511104]
[1738352940703,1.11835478,102240.0,102230.0,0.12811104]
[1738352940841,1.11835478,102240.0,102230.0,0.13711104]
[1738352941044,1.35565478,102260.0,102240.0,0.00176781]
[1738352941263,1.31391978,102260.0,102250.0,0.00176781]
[1738352941466,1.31391978,102260.0,102250.0,0.18238885]
[1738352941467,0.96448178,102260.0,102250.0,0.18238885]
[1738352941675,0.96448178,102260.0,102250.0,0.23018885]
[1738352941888,0.96448178,102260.0,102250.0,0.22921097]
[1738352942084,0.38001946,102270.0,102260.0,0.00176781]
[1738352942560,0.38001946,102270.0,102260.0,0.09901097]
[1738352943313,0.37285946,102270.0,102260.0,0.09998873]
[1738352943800,0.37285946,102270.0,102260.0,0.09901097]
[1738352944202,0.37285946,102270.0,102260.0,0.09998873]
[1738352944393,0.37285946,102270.0,102260.0,0.00097776]
[1738352944570,0.37585946,102270.0,102260.0,0.00176781]
[1738352944955,0.37585946,102270.0,102250.0,0.08514567]
[1738352945157,0.146684,102260.0,102250.0,0.08514567]
[1738352945395,1.11116578,102260.0,102250.0,0.08416781]
[1738352945620,1.11116578,102260.0,102250.0,0.08514569]
[1738352945848,0.136684,102260.0,102250.0,0.08514569]
[1738352946054,0.136684,102260.0,102250.0,0.18238885]
[1738352946774,0.146699,102250.0,102240.0,0.12976781]
[1738352946978,0.342277,102260.0,102250.0,0.00176781]
[1738352947204,1.30675878,102260.0,102250.0,0.09901097]
[1738352947389,1.30675878,102260.0,102250.0,0.00176781]
[1738352947772,1.30675878,102260.0,102250.0,0.00876781]
[1738352948379,1.30675878,102260.0,102250.0,0.00976781]
[1738352948766,1.30675878,102260.0,102250.0,0.10601097]
[1738352949116,1.30675878,102260.0,102250.0,0.10698885]
[1738352949331,1.30675878,102260.0,102250.0,0.11001097]
[1738352950396,1.30675878,102260.0,102250.0,0.11098883]
[1738352950603,1.30675878,102260.0,102250.0,0.11001097]
[1738352950802,1.30675878,102260.0,102250.0,0.01276781]
[1738352951208,1.30675878,102260.0,102250.0,0.11098886]
[1738352953138,0.4581172,102270.0,102260.0,0.00176781]
[1738352953139,0.05014043,102270.0,102260.0,0.00176781]
[1738352953349,0.03060646,102270.0,102260.0,0.7716978]
[1738352953554,0.03060646,102270.0,102260.0,0.57759497]
[1738352954173,0.17727646,102270.0,102260.0,0.24914316]
[1738352954379,0.17727646,102270.0,102260.0,0.23744464]
[1738352954583,1.14175824,102270.0,102260.0,0.09666929]
[1738352954786,1.14891824,102270.0,102260.0,0.01206929]
[1738352954996,1.14891824,102270.0,102260.0,0.01806929]
[1738352955536,1.29991824,102270.0,102260.0,0.02230148]
[1738352955790,1.57711816,102270.0,102260.0,0.02230148]
[1738352956284,1.57711816,102270.0,102260.0,0.015]
[1738352956545,1.4797614,102270.0,102260.0,0.00370103]
[1738352956801,0.146713,102240.0,102230.0,0.00188981]
[1738352957086,0.146713,102240.0,102230.0,0.18123297]
[1738352957322,1.3330914,102270.0,102260.0,0.00176781]
[1738352957323,0.1966638,102270.0,102260.0,0.00176781]
[1738352957537,0.37285146,102270.0,102260.0,0.10001097]
[1738352957752,0.37385146,102270.0,102260.0,0.10001097]
[1738352957953,0.37385146,102270.0,102260.0,0.09901097]
[1738352958375,0.37285146,102270.0,102260.0,0.09901097]
[1738352958578,0.37485146,102270.0,102260.0,0.09901097]
[1738352959168,0.37285146,102270.0,102260.0,0.00176781]
[1738352959574,0.146684,102260.0,102250.0,0.08484567]
[1738352959818,1.11116578,102260.0,102250.0,0.18208883]
[1738352959974,1.11116578,102260.0,102250.0,0.18111097]
[1738352960762,1.11116578,102260.0,102250.0,0.2050888]
[1738352960969,0.96448178,102260.0,102250.0,0.20411097]
[1738352961180,1.11116578,102260.0,102250.0,0.20411097]
[1738352961827,1.11116578,102260.0,102250.0,0.20711097]
[1738352962028,1.11216578,102260.0,102250.0,0.21311097]
[1738352962440,0.147684,102260.0,102250.0,0.09724316]
[1738352962656,1.30774678,102260.0,102250.0,0.09724316]
[1738352963863,0.343265,102260.0,102250.0,0.09724316]
[1738352964206,1.30774678,102260.0,102250.0,0.09724316]
[1738352965506,1.30774678,102260.0,102250.0,0.17514316]
[1738352967291,1.30774678,102260.0,102250.0,0.09822097]
[1738352967669,1.30774678,102260.0,102250.0,0.09724316]
[1738352968788,0.146706,102250.0,102240.0,0.00097789]
[1738352968914,0.146706,102250.0,102240.0,0.09822105]
[1738352969310,0.146706,102250.0,102240.0,0.00097789]
[1738352969534,0.342315,102250.0,102240.0,0.00097795]
[1738352969742,0.195609,102250.0,102230.0,0.080522]
[1738352969939,0.342319,102250.0,102240.0,0.00997795]
[1738352970142,0.343319,102250.0,102240.0,0.00997795]
[1738352970365,0.14771,102250.0,102240.0,0.10722111]
[1738352970602,0.001,102250.0,102240.0,0.10722111]
[1738352971073,0.001,102250.0,102240.0,0.25393411]
[1738352971285,0.001,102250.0,102240.0,0.59915699]
[1738352971492,0.001,102250.0,102240.0,0.76915699]
[1738352971699,0.001,102250.0,102240.0,0.74915699]
[1738352971906,0.001,102250.0,102240.0,0.57615616]
[1738352972124,0.001,102250.0,102240.0,0.76915699]
[1738352972324,0.0002562,102260.0,102250.0,0.0776]
[1738352972531,0.0002562,102260.0,102250.0,0.32251983]
[1738352972738,0.0002562,102260.0,102250.0,0.19784316]
[1738352973135,0.0002562,102260.0,102250.0,0.34454216]
[1738352973360,0.0002562,102260.0,102250.0,0.19784316]
[1738352973775,0.1469402,102260.0,102250.0,0.17484316]
[1738352974189,0.1469402,102260.0,102250.0,0.17784316]
[1738352974845,0.1469402,102260.0,102250.0,0.17882097]
[1738352974969,0.1469402,102260.0,102250.0,0.17784316]
[1738352975391,1.11142198,102260.0,102250.0,0.10122097]
[1738352975596,1.11142198,102260.0,102250.0,0.10024316]
[1738352975793,1.11142198,102260.0,102250.0,0.11022101]
[1738352976033,1.11142198,102260.0,102250.0,0.10924316]
[1738352976263,1.11142198,102260.0,102250.0,0.10024316]
[1738352976461,1.12142198,102260.0,102250.0,0.003]
[1738352976725,1.12142198,102260.0,102250.0,0.01]
[1738352976918,1.27142198,102260.0,102250.0,0.01]
[1738352977323,1.11142198,102260.0,102250.0,0.10724316]
[1738352977683,1.11142198,102260.0,102250.0,0.76424299]
[1738352977684,0.0002562,102260.0,102250.0,0.76424299]
[1738352977882,0.0002562,102260.0,102250.0,0.57124216]
[1738352978303,0.0002562,102260.0,102250.0,0.76424299]
[1738352978511,0.0002562,102260.0,102250.0,0.57124216]
[1738352978714,0.0002562,102260.0,102250.0,0.55124216]
[1738352979030,0.0002562,102260.0,102250.0,0.60785598]
[1738352979881,0.0002562,102260.0,102250.0,0.58785598]
[1738352980051,0.0002562,102260.0,102250.0,0.58485598]
[1738352980281,0.0002562,102260.0,102250.0,0.58985598]
[1738352980855,0.0002562,102260.0,102250.0,0.57324216]
[1738352981077,0.0002562,102260.0,102250.0,0.56124216]
[1738352981401,0.0002562,102260.0,102250.0,0.57524216]
[1738352981820,0.0002562,102260.0,102250.0,0.56124216]
[1738352981978,0.0002562,102260.0,102250.0,0.57024216]
[1738352982462,0.0002562,102260.0,102250.0,0.58934181]
[1738352982673,0.0002562,102260.0,102250.0,0.62595563]
[1738352982880,0.0002562,102260.0,102250.0,0.61695563]
[1738352983259,0.0002562,102260.0,102250.0,0.62995563]
[1738352983529,0.0002562,102260.0,102250.0,0.65140351]
[1738352984241,0.0002562,102260.0,102250.0,0.78002878]
[1738352984607,0.0002562,102260.0,102250.0,0.65140351]
[1738352985322,0.0002562,102260.0,102250.0,0.64240351]
[1738352985492,0.0002562,102260.0,102250.0,0.65140351]
[1738352986246,0.0002562,102260.0,102250.0,0.59569004]
[1738352987639,0.0002562,102260.0,102250.0,0.27899104]
[1738352987837,0.1469402,102260.0,102250.0,0.27899104]
[1738352988204,0.1469402,102260.0,102250.0,0.12194752]
[1738352988464,0.0002562,102260.0,102250.0,0.12292532]
[1738352988714,0.0002562,102260.0,102250.0,0.11122096]
[1738352988910,0.0002562,102260.0,102250.0,0.25791996]
[1738352989125,0.0002562,102260.0,102250.0,0.25694216]
[1738352989495,0.0002562,102260.0,102250.0,0.11024316]
[1738352989737,0.0002562,102260.0,102250.0,0.1112209]
[1738352990133,0.0002562,102260.0,102250.0,0.2579199]
[1738352990438,0.0002562,102260.0,102250.0,0.11024316]
[1738352990738,0.1469402,102260.0,102250.0,0.11024316]
[1738352990940,1.11142198,102260.0,102250.0,0.11024316]
[1738352992201,1.11142198,102260.0,102250.0,0.013]
[1738352992525,1.11142198,102260.0,102250.0,0.107221]
[1738352992652,1.11142198,102260.0,102250.0,0.098221]
[1738352992858,1.11142198,102260.0,102250.0,0.101221]
[1738352993077,1.11242198,102260.0,102250.0,0.109221]
[1738352994066,0.0012562,102260.0,102250.0,0.109343]
[1738352994269,0.0012562,102260.0,102250.0,0.40766727]
[1738352994384,0.0012562,102260.0,102250.0,0.42806416]
[1738352995346,0.0012562,102260.0,102250.0,0.55668943]
[1738352995490,0.0012562,102260.0,102250.0,0.42806416]
[1738352995898,0.1479402,102260.0,102250.0,0.10836516]
[1738352996140,0.1479402,102260.0,102250.0,0.10934297]
[1738352996288,0.1479402,102260.0,102250.0,0.13234293]
[1738352996489,0.1479402,102260.0,102250.0,0.13136516]
[1738352996719,0.0012562,102260.0,102250.0,0.13136516]
[1738352996921,0.1479402,102260.0,102250.0,0.13234293]
[1738352997371,0.0012562,102260.0,102250.0,0.13234293]
[1738352997922,0.0012562,102260.0,102250.0,0.27904193]
[1738352998119,0.0012562,102260.0,102250.0,0.27806416]
[1738352998807,0.0012562,102260.0,102250.0,0.13136516]
[1738352999011,0.0012562,102260.0,102250.0,0.27904188]
[1738352999217,0.0012562,102260.0,102250.0,0.27806416]
[1738353000775,0.0012562,102260.0,102250.0,0.57668943]
[1738353001038,0.0012562,102260.0,102250.0,0.55668943]
[1738353001180,0.0012562,102260.0,102250.0,0.13136516]
[1738353001380,1.11242198,102260.0,102250.0,0.10836516]
[1738353001994,0.96573798,102260.0,102250.0,0.13136516]
[1738353002193,1.11242198,102260.0,102250.0,0.13136516]
[1738353002400,0.1479402,102260.0,102250.0,0.13136516]
[1738353002605,0.0012562,102260.0,102250.0,0.13234293]
[1738353002834,0.0012562,102260.0,102250.0,0.27904193]
[1738353003011,0.0012562,102260.0,102250.0,0.27806416]
[1738353003571,0.0012562,102260.0,102250.0,0.13136516]
[1738353003869,0.1479402,102260.0,102250.0,0.10836516]
[1738353004213,0.1579402,102260.0,102250.0,0.011122]
[1738353004409,0.2979402,102260.0,102250.0,0.011122]
[1738353004616,0.3762402,102260.0,102250.0,0.011122]
[1738353005439,0.3934002,102260.0,102250.0,0.011122]
[1738353005636,0.3862402,102260.0,102250.0,0.008122]
[1738353005842,0.1551002,102260.0,102250.0,0.10536516]
[1738353006241,0.0012562,102260.0,102250.0,0.10536516]
[1738353006441,0.1479402,102260.0,102250.0,0.10536516]
[1738353006647,0.1579402,102260.0,102250.0,0.010122]
[1738353006848,0.2238402,102260.0,102250.0,0.010122]
[1738353007052,0.3810002,102260.0,102250.0,0.010122]
[1738353007472,0.3738402,102260.0,102250.0,0.010122]
[1738353007607,0.3910002,102260.0,102250.0,0.008122]
[1738353007822,0.3810002,102260.0,102250.0,0.000122]
[1738353008036,0.3920002,102260.0,102250.0,0.000122]
[1738353008237,0.2490002,102260.0,102250.0,0.001122]
[1738353008435,0.1559402,102260.0,102250.0,0.09836516]
[1738353008733,0.1539402,102260.0,102250.0,0.09934301]
[1738353008896,0.1569402,102260.0,102250.0,0.09836516]
[1738353009290,0.0102562,102260.0,102250.0,0.24506416]
[1738353009491,0.0102562,102260.0,102250.0,0.39668943]
[1738353009742,0.0102562,102260.0,102250.0,0.26806416]
[1738353009949,0.0102562,102260.0,102250.0,0.12136516]
[1738353010172,0.1569402,102260.0,102250.0,0.12136516]
[1738353010413,0.1569402,102260.0,102250.0,0.09836516]
[1738353010822,0.1539402,102260.0,102250.0,0.09836516]
[1738353011003,0.1469402,102260.0,102250.0,0.000122]
[1738353011210,0.2030402,102260.0,102250.0,0.000122]
[1738353011412,0.2040402,102260.0,102250.0,0.008122]
[1738353011826,0.2040402,102260.0,102250.0,0.011122]
[1738353012247,0.1930402,102260.0,102250.0,0.003122]
[1738353012485,0.2030402,102260.0,102250.0,0.005122]
[1738353012686,0.0002562,102260.0,102250.0,0.10436516]
[1738353012890,0.0002562,102260.0,102250.0,0.25204194]
[1738353013093,0.0002562,102260.0,102250.0,0.70348943]
[1738353013511,0.0002562,102260.0,102250.0,0.70200943]
[1738353013804,0.0002562,102260.0,102250.0,0.55338416]
[1738353014004,0.0002562,102260.0,102250.0,0.70200943]
[1738353014207,0.0002562,102260.0,102250.0,0.58738265]
[1738353014643,0.0012562,102260.0,102250.0,0.41404316]
[1738353014850,0.0012562,102260.0,102250.0,0.25694216]
[1738353015065,0.0012562,102260.0,102250.0,0.69945116]
[1738353015304,0.0012562,102260.0,102250.0,0.42674316]
[1738353015500,0.0012562,102260.0,102250.0,0.35974316]
[1738353015676,0.0012562,102260.0,102250.0,0.26024316]
[1738353015677,0.1479402,102260.0,102250.0,0.26024316]
[1738353015877,0.1479402,102260.0,102250.0,0.11024316]
[1738353016080,0.0012562,102260.0,102250.0,0.11122097]
[1738353016309,0.0012562,102260.0,102250.0,0.28091997]
[1738353016467,0.0012562,102260.0,102250.0,0.28006416]
[1738353016669,0.0012562,102260.0,102250.0,0.45006416]
[1738353019206,0.0012562,102260.0,102250.0,0.28336516]
[1738353019402,0.1479402,102260.0,102250.0,0.11036516]
[1738353019633,0.1479402,102260.0,102250.0,0.11134297]
[1738353019634,0.0012562,102260.0,102250.0,0.11134297]
[1738353019850,0.0012562,102260.0,102250.0,0.28104197]
[1738353020081,0.0012562,102260.0,102250.0,0.28006416]
[1738353020510,0.0112562,102260.0,102250.0,0.28006416]
[1738353021906,0.0112562,102260.0,102250.0,0.13336516]
[1738353022115,0.1579402,102260.0,102250.0,0.11036516]
[1738353022313,0.0112562,102260.0,102250.0,0.11036516]
[1738353022514,0.0112562,102260.0,102250.0,0.25804197]
[1738353022716,0.0112562,102260.0,102250.0,0.25706416]
[1738353023273,0.0112562,102260.0,102250.0,0.28006416]
[1738353023672,0.0112562,102260.0,102250.0,0.13336516]
[1738353024117,0.0112562,102260.0,102250.0,0.11036516]
[1738353024118,0.1579402,102260.0,102250.0,0.11036516]
[1738353025134,0.0112562,102260.0,102250.0,0.11134301]
[1738353026088,0.0112562,102260.0,102250.0,0.62405101]
[1738353026291,0.0112562,102260.0,102250.0,0.70047316]
[1738353027143,0.0112562,102260.0,102250.0,0.50746416]
[1738353027358,0.0112562,102260.0,102250.0,0.52674614]
[1738353027536,0.0112562,102260.0,102250.0,0.71975514]
[1738353028540,0.0112562,102260.0,102250.0,0.78775514]
[1738353028764,0.0112562,102260.0,102250.0,0.81821685]
[1738353028972,0.0112562,102260.0,102250.0,0.78775514]
[1738353029654,0.0112562,102260.0,102250.0,0.78375514]
[1738353029828,0.0102562,102260.0,102250.0,0.77475514]
[1738353030059,0.0102562,102260.0,102250.0,0.77975514]
[1738353031292,0.0102562,102260.0,102250.0,0.78875514]
[1738353031487,0.0102562,102260.0,102250.0,0.77975514]
[1738353031891,0.0102562,102260.0,102250.0,0.78875514]
[1738353033104,0.0102562,102260.0,102250.0,0.81919828]
[1738353033986,0.03060646,102270.0,102260.0,0.421384]
[1738353034187,0.03060646,102270.0,102260.0,0.71163616]
[1738353034946,0.0102562,102270.0,102260.0,0.71163616]
[1738353035195,0.0002562,102290.0,102280.0,0.421356]
[1738353035410,0.0092802,102310.0,102300.0,0.169627]
[1738353035611,0.00942125,102310.0,102300.0,0.26784737]
[1738353035828,0.00942125,102310.0,102300.0,0.12024316]
[1738353035829,0.15603425,102310.0,102300.0,0.12024316]
[1738353036035,0.16603425,102310.0,102300.0,0.09724316]
[1738353036258,0.146646,102290.0,102280.0,0.0009774]
[1738353036459,0.342178,102290.0,102280.0,0.10722056]
[1738353037360,0.621578,102290.0,102280.0,0.009]
[1738353037779,0.146684,102260.0,102250.0,0.08739432]
[1738353037982,1.16756578,102260.0,102250.0,0.18463748]
[1738353038187,1.23286578,102260.0,102250.0,0.08739432]
[1738353039017,1.23286578,102260.0,102250.0,0.08748838]
[1738353039228,1.23286578,102260.0,102250.0,0.00021606]
[1738353039475,1.38286578,102260.0,102250.0,0.00021606]
[1738353041903,1.38286578,102260.0,102250.0,0.00321606]
[1738353042259,1.39535181,102260.0,102250.0,0.00321606]
[1738353042881,1.39535181,102260.0,102250.0,0.00421606]
[1738353043292,1.41496082,102260.0,102250.0,0.00421606]
[1738353044137,1.42212082,102260.0,102250.0,0.00421606]
[1738353044451,1.25247479,102260.0,102250.0,0.00421606]
[1738353044621,1.25963479,102260.0,102250.0,0.00421606]
[1738353045072,1.25247479,102260.0,102250.0,0.00421606]
[1738353045290,1.25963479,102260.0,102250.0,0.00421606]
[1738353045488,1.40963479,102260.0,102250.0,0.00421606]
[1738353049260,1.40247479,102260.0,102250.0,0.00421606]
[1738353049494,1.40963479,102260.0,102250.0,0.00421606]
[1738353049680,1.40963479,102260.0,102250.0,0.00021606]
[1738353049878,1.40247479,102260.0,102250.0,0.00121606]
[1738353050086,1.40963479,102260.0,102250.0,0.00121606]
[1738353050302,1.40963479,102260.0,102250.0,0.00021606]
[1738353050433,1.40963479,102260.0,102250.0,0.00121606]
[1738353050652,1.28077479,102260.0,102250.0,0.00121606]
[1738353050857,1.28793479,102260.0,102250.0,0.00121606]
[1738353051275,1.14077479,102260.0,102250.0,0.00121606]
[1738353051477,1.14793479,102260.0,102250.0,0.09845922]
[1738353051767,1.29793479,102260.0,102250.0,0.09845922]
[1738353052202,1.29793479,102260.0,102250.0,0.09745922]
[1738353052629,1.29793479,102260.0,102250.0,0.09845922]
[1738353052830,1.26832578,102260.0,102250.0,0.00121606]
[1738353053988,1.35012578,102260.0,102250.0,0.00121606]
[1738353058766,1.40002578,102260.0,102250.0,0.00121606]
[1738353061386,1.26832578,102260.0,102250.0,0.00121606]
[1738353061775,1.28066468,102260.0,102250.0,0.00121606]
[1738353063664,1.27116578,102260.0,102250.0,0.00121606]
[1738353063924,1.12116578,102260.0,102250.0,0.09845922]
[1738353064961,1.12116578,102260.0,102250.0,0.09745922]
[1738353065226,0.40114,102270.0,102250.0,0.10045922]
[1738353065454,0.14667,102270.0,102260.0,0.09822092]
[1738353066286,0.14667,102270.0,102260.0,0.09724316]
[1738353066494,0.14667,102270.0,102260.0,0.09822093]
[1738353066893,0.14667,102270.0,102260.0,0.10422093]
[1738353067101,0.2129392,102290.0,102260.0,0.46947893]
[1738353067102,0.5479772,102290.0,102260.0,0.46947893]
[1738353067373,0.5479772,102290.0,102270.0,0.10337761]
[1738353067374,0.5479732,102290.0,102270.0,0.10337761]
[1738353067582,0.3524412,102290.0,102280.0,0.09724316]
[1738353067739,0.0002562,102290.0,102280.0,0.09724316]
[1738353068128,0.1468972,102290.0,102280.0,0.09724316]
[1738353068785,0.342241,102270.0,102260.0,0.0799]
[1738353068931,0.342241,102270.0,102260.0,0.17714316]
[1738353069130,1.17003378,102280.0,102260.0,0.17714316]
[1738353069131,0.342215,102280.0,102260.0,0.17812089]
[1738353069500,0.342215,102280.0,102270.0,0.09822084]
[1738353069807,0.352215,102280.0,102270.0,0.09822084]
[1738353070002,0.352215,102280.0,102270.0,0.10422084]
[1738353070208,0.352215,102280.0,102270.0,0.09822084]
[1738353070652,1.31669678,102280.0,102270.0,0.09724316]
[1738353070835,0.146684,102260.0,102250.0,0.06901606]
[1738353071050,0.156684,102260.0,102250.0,0.09745922]
[1738353071259,0.156684,102260.0,102250.0,0.09843707]
[1738353071670,0.156684,102260.0,102250.0,0.10975316]
[1738353071841,0.156684,102260.0,102250.0,0.09745922]
[1738353072652,0.156684,102260.0,102250.0,0.09843709]
[1738353072853,0.146684,102260.0,102250.0,0.09843709]
[1738353073409,0.146684,102260.0,102250.0,0.10743709]
[1738353073621,0.596727,102270.0,102250.0,0.13043709]
[1738353073622,0.342253,102270.0,102250.0,0.13043709]
[1738353073831,0.02960756,102280.0,102260.0,0.34420291]
[1738353074038,0.0102562,102290.0,102270.0,0.14764364]
[1738353074249,0.0002562,102290.0,102280.0,0.24389916]
[1738353074451,0.0002562,102290.0,102280.0,0.09724316]
[1738353074714,0.0002562,102290.0,102280.0,0.09822065]
[1738353075439,0.0002562,102290.0,102280.0,0.24562065]
[1738353075682,0.0002562,102290.0,102280.0,0.39129916]
[1738353075899,0.0002562,102290.0,102280.0,0.24464316]
[1738353076098,0.1468972,102290.0,102280.0,0.17754316]
[1738353076513,0.0002562,102290.0,102280.0,0.17852069]
[1738353076715,0.0002562,102290.0,102280.0,0.34817669]
[1738353076923,0.0002562,102290.0,102280.0,0.35920112]
[1738353077129,0.0002562,102290.0,102280.0,0.36820112]
[1738353077369,0.0002562,102290.0,102280.0,0.22154512]
[1738353077570,0.0002562,102290.0,102280.0,0.19854512]
[1738353077993,0.0002562,102290.0,102280.0,0.19454512]
[1738353078178,0.1468972,102290.0,102280.0,0.12124512]
[1738353078389,0.1468972,102290.0,102280.0,0.12222266]
[1738353079013,0.0002562,102290.0,102280.0,0.12222266]
[1738353079223,0.1468972,102290.0,102280.0,0.12222266]
[1738353079423,0.0002562,102290.0,102280.0,0.29187866]
[1738353079640,0.0002562,102290.0,102280.0,0.29090112]